Cogmind - Beta 13 @@@ ROGUE MODE // 2024.05.04 @ 17:18:38 Player: dwarfinator Result: Destroyed by S-10 Pest with Light Assault Rifle Performance ------------- Evolutions (0) 0 Regions Visited (2) 400 Robots Destroyed (0) 0 Value Destroyed (0) 0 Prototype IDs (0) 0 Alien Tech Used (0) 0 Bonus (0) 0 TOTAL SCORE: 400 Bonus ------- None Cogmind --------- Core Integrity 0/250 Matter 260/300 Energy 99/100 System Corruption 0% Temperature Cool (0) Movement Core (50) Location -10/Mines Parts ------- > --- POWER (1) -------- (None) > --- PROPULSION (2) --- (None) > --- UTILITY (2) ------ Propulsion Shielding > --- WEAPON (2) ------- Mining Laser > --- INVENTORY (5) ---- Light Ion Engine Small Storage Unit Peak State ------------ > --- POWER ------------ (None) > --- PROPULSION ------- Flight Unit Flight Unit > --- UTILITY ---------- Seismic Detector Propulsion Shielding > --- WEAPON ----------- Light Assault Rifle Mining Laser > --- INVENTORY -------- Light Ion Engine Small Storage Unit EM Pulse Gun Light Assault Rifle Grenade Launcher [Rating: 6] Favorites ----------- Power Light Ion Engine Engine Light Ion Engine Propulsion Flight Unit Flight Unit Flight Unit Utility Propulsion Shielding Device Seismic Detector Protection Propulsion Shielding Weapon Light Assault Rifle Energy Gun EM Pulse Gun Ballistic Gun Light Assault Rifle Special Weapon Mining Laser Build | -11 -10 -10 ------- Run | Yrd Mat Min Slots Evolved . | . . . Power . | . . . Propulsion . | . . . Utility . | . . . Weapon . | . . . Parts Attached 19 | 2 13 4 Power 1 | . 1 . Engine 1 | . 1 . Core . | . . . Reactor . | . . . Propulsion 4 | . 4 . Treads . | . . . Leg . | . . . Wheel . | . . . Hover . | . . . Flight 4 | . 4 . Utility 3 | . 2 1 Device 2 | . 1 1 Storage . | . . . Processor . | . . . Hackware . | . . . Protection 1 | . 1 . Artifact . | . . . Weapon 11 | 2 6 3 Energy Gun 2 | . 2 . Energy Cannon . | . . . Ballistic Gun 4 | 2 2 . Ballistic Cannon . | . . . Launcher . | . . . Special Weapon 5 | . 2 3 Impact Weapon . | . . . Slashing Weapon . | . . . Piercing Weapon . | . . . Special Melee Weapon . | . . . Unidentified Prototypes . | . . . Parts Lost 13 | . 8 5 Power . | . . . Propulsion 4 | . 4 . Utility 2 | . 1 1 Weapon 7 | . 3 4 Highest Loss Streak 8 | . 8 3 To Critical Strikes . | . . . Average Slot Usage (%) 43 | . 50 38 Flight 4 | . 10 . Device 3 | . 6 . Protection 11 | . 7 14 Energy Gun 1 | . 3 . Ballistic Gun 12 | . 18 7 Special Weapon 10 | . 1 16 Naked Turns . | . . . Heaviest Build 5 | 2 5 3 Greatest Support 8 | 3 8 3 Greatest Overweight (x) 1 | . 1 . Average Overweight (x) . | . . . Largest Inventory Capacity 5 | 5 5 5 Average Capacity 5 | 5 5 5 Most Carried 5 | 4 5 5 Average Carried 3 | 1 4 3 Final Capacity 5 | 5 5 5 Final Carried 5 | 4 5 2 Class Distribution -------------------- 100% | Mutant Dominant Class ---------------- Mutant | -10/Materials Mutant | -10/Mines Resources | -11 -10 -10 ----------- Run | Yrd Mat Min Matter Collected 286 | 220 18 48 Remotely . | . . . Salvage Created . | . . . Parts . | . . . Haulers Intercepted . | . . . Recyclers Shooed . | . . . Parts Field Recycled . | . . . Retrieved Matter . | . . . Parts Self-Destructed . | . . . Prevented . | . . . Kills | -11 -10 -10 ------- Run | Yrd Mat Min Combat Hostiles Destroyed . | . . . Classes Destroyed . | . . . Best Kill Streak . | . . . Combat Bots Only . | . . . Max Kills in Single Turn . | . . . Gunslinging . | . . . Exploded . | . . . Melee . | . . . Uniques/NPCs Destroyed . | . . . Combat | -11 -10 -10 -------- Run | Yrd Mat Min Hostile Shots Fired 153 | . 98 55 Missed 65 | . 42 23 Damage Taken 792 | . 513 279 Core 252 | . 170 82 Absorbed by Shields . | . . . Redirected to Shielding 23 | . 23 . Core Remaining (%) 100 | 100 . . Volleys Fired 1 | . 1 . Largest 2 | . 2 . Hottest 120 | . 120 . Shots Fired 2 | . 2 . Gun 1 | . 1 . Cannon . | . . . Launcher . | . . . Special 1 | . 1 . Kinetic 1 | . 1 . Thermal 1 | . 1 . Explosive . | . . . Electromagnetic . | . . . Robot Hit Streak . | . . . Robot Miss Streak . | . . . Penetration Max . | . . . Secondary Targets . | . . . Shots Hit Robots . | . . . Core Hits . | . . . Critical Kills . | . . . Critical Parts Destroyed . | . . . Critical Strikes . | . . . Melee Attacks . | . . . Impact . | . . . Slashing . | . . . Piercing . | . . . Sneak Attacks . | . . . Combat Hostiles . | . . . Follow-up Attacks . | . . . Damage Inflicted . | . . . Guns . | . . . Cannons . | . . . Explosions . | . . . Melee . | . . . Ramming . | . . . Kinetic . | . . . Thermal . | . . . Explosive . | . . . Electromagnetic . | . . . Impact . | . . . Slashing . | . . . Piercing . | . . . Highest Corruption . | . . . Average Corruption . | . . . Corruption Purged . | . . . Corruption Blocked . | . . . Overload Shots . | . . . Overflow Damage . | . . . Projectiles . | . . . Explosions . | . . . Melee . | . . . Knockbacks . | . . . Impact . | . . . Kinetic . | . . . Secondary . | . . . Self-Inflicted Damage . | . . . Shots . | . . . Rammed . | . . . Targets Rammed . | . . . Kicked . | . . . Crushed . | . . . Highest Temperature 24 | . 24 . Average Temperature 15 | . 15 . Received Heat Transfer 132 | . 90 42 Siege Activations . | . . . Robots Corrupted . | . . . Combat Hostiles . | . . . Parts Fried . | . . . Impact Corruptions . | . . . Robots Melted . | . . . Combat Hostiles . | . . . Parts Melted . | . . . Heat Transferred . | . . . Parts Sabotaged . | . . . Parts Stolen . | . . . Parts Stripped . | . . . Power Chain Reactions . | . . . Alert | -11 -10 -10 ------- Run | Yrd Mat Min Peak Influence 235 | . 154 235 Initial 60 | . . 60 Average 107 | . 51 157 Maximum Alert Level 1 | . . 1 Low Security (%) 81 | 100 100 67 Level 1 18 | . . 32 Level 2 . | . . . Level 3 . | . . . Level 4 . | . . . Level 5 . | . . . High Security . | . . . Max Security . | . . . Squads Dispatched 1 | . 1 . Investigation . | . . . Extermination . | . . . Reinforcement 1 | . 1 . Assault . | . . . Garrison . | . . . Intercept . | . . . Searches Triggered . | . . . Construction Impeded . | . . . Haulers Reinforced . | . . . Active Scanning Responses . | . . . Cargo Convoy Interrupts . | . . . Stealth | -11 -10 -10 --------- Run | Yrd Mat Min Distress Signals 1 | . 1 . Communications Jammed . | . . . Distress Signals . | . . . Times Spotted 36 | . 20 16 Peak Tracking Total 12 | . 12 5 Tactical Retreats 9 | . 4 5 Traps | -11 -10 -10 ------- Run | Yrd Mat Min Traps Triggered . | . . . Indirectly . | . . . Trap Hack Attempts . | . . . Triggered . | . . . Disarmed . | . . . Reprogrammed . | . . . Reused . | . . . Traps Extracted . | . . . Installed . | . . . Triggered 1 | . . 1 Machines | -11 -10 -10 ---------- Run | Yrd Mat Min Machines Disabled . | . . . Max in Single Turn . | . . . Machines Repaired . | . . . Machines Dismantled . | . . . Machines Sabotaged . | . . . Overloaded Fab Kills . | . . . Hacking | -11 -10 -10 --------- Run | Yrd Mat Min Machines Accessed 2 | . 2 . Terminals 2 | . 2 . Fabricators . | . . . Repair Stations . | . . . Recycling Units . | . . . Scanalyzers . | . . . Garrison Access . | . . . Total Hacks 4 | . 4 . Successful 4 | . 4 . Failed . | . . . Catastrophic . | . . . Database Lockouts . | . . . Manual 4 | . 4 . Terminals 4 | . 4 . Fabricators . | . . . Repair Stations . | . . . Recycling Units . | . . . Scanalyzers . | . . . Garrison Access . | . . . Terminal Hacks . | . . . Fabricator Hacks . | . . . Repair Station Hacks . | . . . Recycling Unit Hacks . | . . . Scanalyzer . | . . . Garrison Access Hacks . | . . . Unauthorized Hacks 4 | . 4 . Terminals 4 | . 4 . Track 2 | . 2 . Botnet 1 | . 1 . Operators 1 | . 1 . Fabricators . | . . . Repair Stations . | . . . Recycling Units . | . . . Scanalyzers . | . . . Garrison Access . | . . . Data Cores Recovered . | . . . Used . | . . . Hacking Detections 2 | . 2 . Full Trace Events . | . . . Feedback Events . | . . . Feedback Blocked . | . . . Robot Schematics Acquired . | . . . Robots Built . | . . . Authchips . | . . . Time . | . . . Total Robot Build Rating . | . . . Part Schematics Acquired . | . . . Parts Built . | . . . Authchips . | . . . Time . | . . . Total Part Build Rating . | . . . Parts Repaired . | . . . Time . | . . . Parts Recycled . | . . . Recycled Matter . | . . . Retrieved Matter . | . . . Retrieved Components . | . . . Parts Scanalyzed . | . . . Part Schematics Acquired . | . . . Parts Damaged . | . . . Bothacking | -11 -10 -10 ------------ Run | Yrd Mat Min Used RIF Installer . | . . . Robots Hacked . | . . . Non-combat . | . . . Combat . | . . . Robot Hacks Applied . | . . . Relay Couplers Released . | . . . Fabnet Peak Effective % . | . . . Robots Rewired . | . . . Allies Hacked . | . . . Hacks Repelled . | . . . Allies | -11 -10 -10 -------- Run | Yrd Mat Min Total Allies . | . . . Largest Group . | . . . Highest-Rated Group . | . . . Highest-Rated Ally . | . . . Total Orders . | . . . Ally Attacks . | . . . Total Damage . | . . . Kills . | . . . Allies Corrupted . | . . . Allies Melted . | . . . Intel | -11 -10 -10 ------- Run | Yrd Mat Min Robot Analysis Total . | . . . Derelict Logs Recovered 2 | . . 2 Drone Launches . | . . . Drone Recoveries . | . . . Exploration | -11 -10 -10 ------------- Run | Yrd Mat Min Turns Passed 398 | 27 147 224 Spaces Moved 703 | 41 266 396 Core 528 | 41 91 396 Treads . | . . . Legs . | . . . Wheels . | . . . Hover . | . . . Flight 175 | . 175 . Fastest Speed 37 | 50 37 50 Average Speed 47 | 50 43 50 Slowest Speed 120 | 50 120 50 Overloaded Moves . | . . . Propulsion Burnouts . | . . . Robots Hopped 5 | . 5 . Cave-ins Triggered . | . . . Exploration Rate (%) 48 | 4 58 82 Regions Visited 2 Branch Regions 1 Pre-discovered Areas 1 | . . 1 Known Exits Taken . | . . . Unknown Exits Taken 2 | 1 1 . Scrap Searched 1 | . . 1 Spaces Dug 1 | . 1 . Terrain Destroyed 1 | . 1 . Melee . | . . . Projectile 1 | . 1 . AOE . | . . . Terrain Rammed . | . . . Walls Destroyed . | . . . Machines Disabled . | . . . Actions | -11 -10 -10 --------- Run | Yrd Mat Min Total 751 | 46 283 422 Wait 20 | . 1 19 Move 691 | 40 255 396 Hop 5 | . 5 . Pick Up 11 | 4 5 2 Fast Attach 9 | 2 7 . Attach 7 | . 3 4 Detach 1 | . 1 . Swap 3 | . 3 . Drop 3 | . 2 1 Fire 1 | . 1 . Melee . | . . . Ram . | . . . Kick . | . . . Crush . | . . . Escape Stasis . | . . . Rewire . | . . . Trap . | . . . Miscellaneous . | . . . Route ------- -11/Scrapyard -10/Materials (discovered 2 exits: [*Mat] / [*Min]) -10/Mines (discovered 1 exit: [*Mat]) History --------- Turn | Location | Event 6 | -11/Scrapyard | Discovered new exit (range 16) 28 | -11/Scrapyard | Entered Materials 103 | -10/Materials | Discovered new exit (range 4) 140 | -10/Materials | Core integrity fell below 50% 159 | -10/Materials | Discovered new exit (range 16) 175 | -10/Materials | Entered Mines 179 | -10/Mines | Lost 8 parts (4n1u3w) 201 | -10/Mines | Discovered new exit (range 9) 274 | -10/Mines | Learned Materials emergency access door positions 278 | -10/Mines | Core integrity fell below 20% 296 | -10/Mines | Learned 2 Materials zone layouts 334 | -10/Mines | Build established: Mutant 339 | -10/Mines | Learned location of Storage (-8) 393 | -10/Mines | Lost 3 parts (1u2w) 399 | -10/Mines | Destroyed by S-10 Pest with Light Assault Rifle Last Messages --------------- 00311_ Mining Laser destroyed. 00327_ K-01 Serf collects debris. 00339_ A derelict emerges from the shadows: "Are any of them following you? I'm here trying to lose some heat after our second raid on Storage failed. Whatever you do stay away from that place, they've tightened security following our previous successful raids." World map updated: -8/Storage. 00341_ US-N38(g): "We scattered so the Unaware couldn't effectively use their advantage in numbers, and I suggest you do the same." 00341_ US-N38(g) slips back into the shadows. 00344_ Welding Torch destroyed. 00351_ Acquired Heat Sink. 00353_ Mining Laser destroyed. 00362_ Heat Sink destroyed. 00385_ U-05 Engineer builds a Wall. 00388_ Acquired 19 matter. 00389_ Acquired 29 matter. 00390_ U-05 Engineer lays Concrete. 00391_ U-05 Engineer builds a Wall. 00393_ U-05 Engineer lays Concrete. Map ----- +----------------------------------------------------+ | ???## #?????????????????????## ##????# | | ????## ##??????????????????????## #?????# | | ?????## ##????????????????????????## #????## | | ??????# #?????????????????????????## ##??## | | ??????# ##????????????????????????## #### | | ??????# ##?????????????????####????# | | ??????# ##?????????????????## ##??## """ | | ??????### #??????????????????# #### """ | | ????????#]#?????????????????## ## """ | | ?????####%###???????????????# | | ??####""# # ###?????????????# ### | | ??# %#"""##?????????#### #######?## | | ??# ##### = ##????????# ##????????# | | ??# #?# # " #???###### #?????????## | | ??# #?# ##??# ### ##??????????### | | ??# ### #??# #?## #?????????????#### | | ### ## #??# #####??# #????????????????? | | # " #??# #??????# #????????????????? | | ## " #??# #??????# #????????????????? | | ### ##"" ##??# #??????# #????????????????? | | #??# ####" ##??# #??????# #????????????????? | | ???# #??##" #??# #??????# #????????????????? | | ???# #???### #### #??????# #????????????????? | | ???# #?????## ######## #????????????????? | | ???# ###????## #????????????????? | | ??## ##????# #########@#######????????????????? | | ??# #????# #???????# #????######????????????? | | ??# ##???# #??????##s##??# ##???????????? | | ### !! ##??# ######## k ### #???????????? | | =#??# #???????????? | | #### ! #??# ## ## #?????? | | ???### ##??############## #??????? | | ?????# ##????????????????# #???????? | | ?????# ###?????????####??# ## #???????? | | ?????# ########### #### ##??? #???????? | | ??####### ## ##??????#????????? | | ?## ##?# ########## ##????????????????? | | ?# ### ##??????## #?????????????????? | | ?## #???????## ????????????? | | ??## #????????# #???????????? | | ##### #????????# ###### ?????????? | | #?##### ##????????# ###??????????????????? | | #?????####?????????# ##????????????????????? | | #??????????????????# #?????????????????????? | | #?????????????????? ?????????????????????? | | #?????????????????# #????????????????????? | | #?????????????????# ##????????????????????? | | #?????????????????## #?????????????????????? | | #??????????????????## ##?????????????????????? | | ###???????????????????#####??????????????????????? | +----------------------------------------------------+ Best States ------------- Heat Dissipation 35 Energy Generation 10 Energy Capacity 125 Matter Stores 300 Matter Capacity 300 Sight Range 16 Terrain Scan Density 10 Propulsion Shielding 33 Evasion (%) 62 Item Schematics ----------------- None Robot Schematics ------------------ None Fabricated ------------ Nothing Alien Tech Used ----------------- None Achievements -------------- None Challenges ------------ None Game ------ Seed FactoryTiamatFalx Manual? 0 Play Time 00:20:40 Cumulative 51.8 hours Start 2024.05.04 @ 17:02:55 End 2024.05.04 @ 17:18:38 Sessions 1 Manual Loads 0 Difficulty Rogue Special Mode None Game No. 9 Rogue 6 Adventurer 3 Explorer 0 Win Type - Total 0 Types 0/0/0/0/0/0/0/0/0 Lore% 31 Gallery% 56 Achievement% 48 Wizard Run 0 Options --------- Layout 0 ASCII 0 Keyboard 0 Movement Numpad Keybinds 0 Fullscreen 1 Font 18/SmallcapsGlow Map View 76x50 Zoom Use 0% Tactical HUD 1 Map Filters NONE Filters NONE Steam 1 RUN: d216d0eb-ec0b-4bf6-bcee-22704a6bf645